bitfinex-derivatives/quotes_ETHF0:USTF0_20251006
["timestamp","ask_amount","ask_price","bid_price","bid_amount"]
[1759785811011,0.82006,4675.9,4675.8,0.9672]
[1759785811407,0.82006,4675.9,4675.8,0.7462]
[1759785811608,0.82006,4675.9,4675.8,0.9672]
[1759785811808,0.38474,4676.1,4676.0,0.8689]
[1759785812805,3.2078,4676.4,4676.1,0.311]
[1759785813013,3.59252,4676.4,4676.3,0.7462]
[1759785813201,3.81192,4676.4,4676.3,0.7462]
[1759785813808,3.59252,4676.4,4676.3,0.9662]
[1759785814007,0.38472,4676.4,4676.3,0.9662]
[1759785814810,0.38471,4676.6,4676.3,0.9662]
[1759785815113,0.38471,4676.6,4676.5,0.8689]
[1759785815911,0.38468,4676.9,4676.8,0.4352]
[1759785816112,0.38468,4676.9,4676.8,0.9662]
[1759785816311,0.48756123,4676.9,4676.8,0.9662]
[1759785816512,0.38737282,4677.0,4676.8,0.6552]
[1759785816710,0.38737282,4677.0,4676.9,0.7465]
[1759785818415,1.08089054,4677.0,4676.9,0.7465]
[1759785819413,0.38737282,4677.0,4676.9,0.7465]
[1759785820513,0.00270282,4677.0,4676.9,0.7465]
[1759785822216,3.2078,4677.9,4677.6,0.4202]
[1759785822516,0.48858925,4677.8,4677.7,0.9665]
[1759785822720,3.79775,4678.4,4678.3,0.7465]
[1759785822911,4.28637803,4678.4,4678.3,0.9665]
[1759785823109,0.3846,4677.8,4677.7,41.1263]
[1759785823310,4.00804551,4678.4,4678.3,0.7465]
[1759785823517,4.28813889,4678.4,4678.3,0.9665]
[1759785823824,4.08273889,4678.4,4678.3,0.9665]
[1759785824021,4.28813889,4678.4,4678.3,0.9665]
[1759785824215,3.79964551,4678.4,4678.3,0.9665]
[1759785825921,3.79964551,4678.4,4678.3,0.7465]
[1759785826217,3.74829551,4678.4,4677.7,40.8]
[1759785826419,0.92323,4677.4,4677.3,0.5299]
[1759785826618,0.4138,4677.4,4677.3,0.9665]
[1759785827020,0.2054,4677.4,4677.3,0.7465]
[1759785827222,0.4138,4677.4,4677.3,0.9665]
[1759785827523,0.38461,4677.7,4677.4,0.7465]
[1759785827721,0.38461,4677.7,4677.6,0.7465]
[1759785828220,1.39548,4678.5,4677.7,0.90771]
[1759785828221,0.3846,4677.8,4677.7,0.90771]
[1759785828521,0.38459,4678.0,4677.9,0.734]
[1759785829225,0.59897,4678.2,4678.1,0.734]
[1759785829414,0.38457,4678.2,4678.1,0.954]
[1759785830432,0.38644551,4678.4,4678.3,0.734]
[1759785830644,0.00189551,4678.4,4678.3,0.734]
[1759785831027,0.38644551,4678.4,4678.3,41.534]
[1759785831226,0.00189551,4678.4,4678.3,41.534]
[1759785831826,1.09056,4680.0,4679.3,0.5231]
[1759785831827,0.4255,4679.4,4679.3,0.5231]
[1759785832028,0.80997,4679.4,4679.3,0.7431]
[1759785832528,0.80997,4679.4,4679.3,0.954]
[1759785832831,0.81235441,4679.4,4679.3,0.95643065]
[1759785833429,0.60125441,4679.4,4679.3,0.95643065]
[1759785834230,0.38685441,4679.4,4679.3,0.95643065]
[1759785834432,0.00238441,4679.4,4679.3,0.95643065]
[1759785840539,0.00238441,4679.4,4679.3,41.75643065]
[1759785840741,0.80989,4680.4,4680.3,0.5231]
[1759785840937,1.11469,4680.4,4680.3,0.7431]
[1759785841632,1.11637787,4680.4,4680.3,0.7431]
[1759785842038,0.81157787,4680.4,4680.3,0.954]
[1759785842744,0.60047787,4680.4,4680.3,0.954]
[1759785843140,0.21608787,4680.4,4680.3,0.954]
[1759785843842,0.00168787,4680.4,4680.3,0.954]
[1759785844741,0.96085,4681.1,4680.3,0.954]
[1759785844742,3.2078,4681.2,4680.3,4.1618]
[1759785844941,0.59874,4681.0,4680.9,0.734]
[1759785845143,3.2078,4681.2,4680.9,0.953]
[1759785845347,3.2078,4681.2,4681.1,0.734]
[1759785845851,3.20998174,4681.2,4681.1,0.734]
[1759785846151,0.00218174,4681.2,4681.1,0.734]
[1759785847745,0.00218174,4681.2,4681.1,5.734]
[1759785847949,0.00218174,4681.2,4681.1,46.534]
[1759785848247,0.59865,4682.1,4682.0,0.8599]
[1759785848449,0.59865,4682.1,4682.0,1.0789]
[1759785848651,3.2078,4682.3,4682.2,0.427]
[1759785848849,0.38423,4682.4,4682.3,0.734]
[1759785849044,0.59861,4682.6,4682.5,0.5529]
[1759785849251,0.59861,4682.6,4682.5,1.0789]
[1759785849548,0.60052786,4682.6,4682.5,1.0789]
[1759785849749,0.21631786,4682.6,4682.5,1.0789]
[1759785850244,0.00191786,4682.6,4682.5,1.0789]
[1759785851051,0.00191786,4682.6,4682.5,41.8789]
[1759785851748,0.00191786,4682.6,4682.5,46.8789]
[1759785852950,0.022,4682.9,4682.8,1.11819]
[1759785853152,0.022,4682.9,4682.8,4.54499]
[1759785853750,0.022,4682.9,4682.8,44.7418]
[1759785853954,0.40814848,4682.9,4682.8,41.7544997]
[1759785854152,1.13844848,4682.9,4682.8,0.7354997]
[1759785854356,0.02396848,4682.9,4682.8,0.7354997]
[1759785854650,0.38411,4683.9,4683.3,0.307]
[1759785854851,0.38411,4683.9,4683.4,3.9418]
[1759785854852,0.4255,4683.5,4683.4,3.9418]
[1759785855154,0.4255,4683.5,4683.4,3.9519]
[1759785855155,0.7303,4683.5,4683.4,3.9519]
[1759785855554,0.42798665,4683.5,4683.4,4.1628]
[1759785856755,0.73278665,4683.5,4683.4,0.5231]
[1759785856951,0.73278665,4683.5,4682.8,0.0014997]
[1759785856952,1.11448,4682.9,4682.8,0.0014997]
[1759785857153,1.11448,4682.9,4682.8,0.2214997]
[1759785857357,0.1295,4683.0,4682.8,0.2214997]
[1759785857358,0.38415,4683.3,4683.0,0.1259]
[1759785857559,0.80965,4683.3,4683.2,0.427]
[1759785857759,0.00248665,4683.5,4683.4,0.427]
[1759785857952,0.00248665,4683.5,4683.4,0.954]
[1759785860450,0.90204,4684.6,4684.5,0.2082]
[1759785860650,0.419,4684.6,4684.5,1.0841]
[1759785860960,3.4126,4684.8,4684.7,0.4226]
[1759785861158,0.2048,4685.1,4685.0,0.6559]
[1759785861365,0.2048,4685.1,4685.0,1.0841]
[1759785861555,0.20741524,4685.1,4685.0,1.0841]
[1759785862963,0.00261524,4685.1,4685.0,1.0841]
[1759785864156,0.00261524,4685.1,4685.0,1.46811]
[1759785865559,0.8029,4686.4,4686.3,0.4226]
[1759785865858,0.419,4686.4,4686.3,0.9552]
[1759785866062,0.69706,4686.8,4686.3,0.9552]
[1759785866361,1.11606,4686.8,4686.7,0.7352]
[1759785866562,1.11838498,4686.8,4686.7,0.95725403]
[1759785866762,1.11838498,4686.8,4686.7,0.73725403]
[1759785866959,1.11838498,4686.8,4686.7,0.74285403]
[1759785867456,1.11838498,4686.8,4686.7,0.22205403]
[1759785867761,1.11838498,4686.8,4685.4,3.2078]
[1759785867762,0.2048,4685.2,4685.1,0.7352]
[1759785867960,0.38397,4685.5,4685.1,0.6426]
[1759785868163,0.58877,4685.5,4685.4,0.7352]
[1759785868354,0.58877,4685.5,4685.4,0.9552]
[1759785868557,0.58877,4685.5,4685.4,0.95789414]
[1759785869966,0.58877,4685.5,4685.4,0.73789414]
[1759785870165,0.58877,4685.5,4685.4,0.95789414]
[1759785871060,0.58877,4685.5,4685.4,0.73789414]
[1759785871261,0.80297,4685.5,4685.4,0.95789414]
[1759785871863,1.11617,4685.5,4685.4,0.00269414]
[1759785872169,1.11624,4684.6,4684.5,3.6493]
[1759785872460,0.80304,4684.6,4684.5,4.2919]
[1759785872857,0.80304,4684.6,4684.5,4.0719]
[1759785873058,0.80304,4684.6,4684.5,4.29346959]
[1759785873262,0.80304,4684.6,4684.5,4.07346959]
[1759785873658,0.80304,4684.6,4684.5,4.29346959]
[1759785873964,0.80304,4684.6,4684.5,4.07346959]
[1759785874262,0.80304,4684.6,4684.5,4.29346959]
[1759785874458,0.80304,4684.6,4684.5,4.07346959]
[1759785874662,4.01084,4684.6,4684.5,1.08566959]
[1759785875062,4.32404,4684.6,4684.5,0.00156959]
[1759785875258,4.32404,4684.6,4684.5,0.22156959]
[1759785875568,4.32404,4684.6,4684.5,0.53416959]
[1759785875767,1.11624,4684.6,4684.5,0.53416959]
[1759785877267,1.11624,4684.6,4684.5,0.22156959]
[1759785877869,1.11624,4684.6,4684.5,0.00156959]
[1759785878272,1.11624,4684.6,4684.5,0.22156959]
[1759785879266,6.59661112,4684.6,4684.5,0.22156959]
[1759785879465,6.59661112,4684.6,4684.5,0.00156959]
[1759785879664,0.7482,4683.6,4683.5,0.4452]
[1759785879869,0.7482,4683.6,4683.5,0.8755]
[1759785880068,1.13232,4683.6,4683.5,0.8755]
[1759785880664,0.82192,4683.6,4683.5,1.09546347]
[1759785881965,0.82192,4683.6,4683.5,0.87546347]
[1759785882166,0.82192,4683.6,4683.5,1.09546347]
[1759785882570,0.82192,4683.6,4683.5,0.87546347]
[1759785882770,0.82192,4683.6,4683.5,1.09546347]
[1759785882974,0.82192,4683.6,4683.5,0.87546347]
[1759785883175,0.82192,4683.6,4683.5,1.09546347]
[1759785887475,0.38412,4683.6,4683.5,0.87546347]
[1759785887678,0.60142,4683.6,4683.5,1.09446347]
[1759785887980,0.82192,4683.6,4683.5,1.09446347]
[1759785888374,0.82192,4683.6,4683.5,0.87546347]
[1759785888575,0.82192,4683.6,4683.5,1.09446347]
[1759785889179,0.82192,4683.6,4683.5,0.87546347]
[1759785889380,0.82192,4683.6,4683.5,1.09446347]
[1759785890079,0.82192,4683.6,4683.5,0.87546347]
[1759785890280,0.82192,4683.6,4683.5,1.09446347]
[1759785890479,0.82192,4683.6,4683.5,0.87546347]
[1759785890680,0.82192,4683.6,4683.5,1.09446347]
[1759785890875,0.82192,4683.6,4683.5,0.31886347]
[1759785891077,0.82192,4683.6,4682.5,0.1289]
[1759785891078,0.3024,4683.1,4682.6,0.3056]
[1759785891279,1.1045,4682.7,4682.6,0.3056]
[1759785891581,1.1045,4682.7,4682.6,0.7412]
[1759785891777,1.10453,4682.3,4682.2,3.73]
[1759785891984,1.1045,4682.7,4682.6,0.5222]
[1759785892183,1.10693659,4682.7,4682.6,0.00150636]
[1759785892478,6.10693659,4682.7,4682.6,0.00150636]
[1759785892674,6.10693659,4682.7,4682.6,0.22050636]
[1759785896486,6.10693659,4682.7,4682.6,0.00150636]
[1759785896686,6.10693659,4682.7,4682.6,0.22150636]
[1759785896886,6.10693659,4682.7,4682.6,0.00150636]
[1759785897186,6.10693659,4682.7,4682.6,0.22150636]
[1759785897784,6.10693659,4682.7,4682.6,0.94610636]
[1759785897785,0.00243659,4682.7,4682.6,0.94610636]
[1759785900282,0.42033659,4682.7,4682.6,0.72610636]
[1759785900488,0.72273659,4682.7,4682.6,0.00150636]
[1759785900788,0.42033659,4682.7,4682.6,0.94610636]
[1759785900978,0.72273659,4682.7,4682.6,0.94610636]
[1759785901180,0.42033659,4682.7,4682.6,0.94610636]
[1759785901385,0.72273659,4682.7,4682.6,0.00150636]
[1759785901584,0.72273659,4682.7,4682.6,0.22150636]
[1759785902184,0.72273659,4682.7,4682.6,0.00150636]
[1759785902583,0.72273659,4682.7,4682.6,0.22150636]
[1759785902788,0.00243659,4682.7,4682.6,0.94610636]
[1759785902986,3.2078,4683.5,4683.4,0.2166]
[1759785903188,3.2078,4683.5,4683.4,0.9446]
[1759785903694,0.802,4683.9,4683.8,0.7246]
[1759785903992,0.80443039,4683.9,4683.8,0.9446]
[1759785904685,0.00243039,4683.9,4683.8,0.9446]
[1759785905493,3.80863,4684.8,4684.7,0.419]
[1759785905794,3.80863,4684.8,4684.7,0.9446]
[1759785906592,3.81113203,4684.8,4684.7,0.9446]
[1759785907091,3.59433203,4684.8,4684.7,0.9446]
[1759785908094,3.81113203,4684.8,4684.7,0.9446]
[1759785909098,0.60333203,4684.8,4684.7,0.9446]
[1759785910797,0.38653203,4684.8,4684.7,0.9446]
[1759785912802,0.60333203,4684.8,4684.7,0.9446]
[1759785913994,0.38653203,4684.8,4684.7,0.9446]
[1759785915798,0.00250203,4684.8,4684.7,0.9446]
[1759785916003,0.00250203,4684.8,4684.7,4.1524]
[1759785916498,0.00250203,4684.8,4684.7,37.4584]
[1759785916698,0.00250203,4684.8,4684.7,78.2584]
[1759785919906,0.38398,4685.4,4685.3,0.4136]
[1759785920104,0.38398,4685.4,4685.3,0.954]
[1759785920905,0.3855454,4685.4,4685.3,0.954]
[1759785921102,1.1369454,4685.4,4685.3,0.735]
[1759785921303,1.1369454,4685.4,4685.3,0.219]
[1759785921504,0.4204,4685.1,4685.0,0.8569]
[1759785921705,0.4204,4685.1,4685.0,1.0759]
[1759785922010,0.4204,4685.1,4685.0,0.8569]
[1759785922209,0.4204,4685.1,4685.0,1.0759]
[1759785923708,0.2203654,4685.4,4685.3,0.735]
[1759785925018,0.2203654,4685.4,4685.3,0.954]
[1759785926315,0.2203654,4685.4,4685.3,0.735]
[1759785926515,0.2203654,4685.4,4685.3,0.954]
[1759785928516,0.0015654,4685.4,4685.3,0.954]
[1759785930614,0.0015654,4685.4,4685.3,0.953]
[1759785930810,0.0015654,4685.4,4685.3,0.735]
[1759785931115,0.3855354,4685.4,4685.3,0.953]
[1759785932015,0.3855354,4685.4,4685.3,1.33698]
[1759785932214,0.3855354,4685.4,4685.3,0.953]
[1759785932712,0.3855354,4685.4,4685.3,0.735]
[1759785932713,0.6043354,4685.4,4685.3,0.735]
[1759785932917,0.6043354,4685.4,4685.3,0.953]
[1759785933214,0.8059354,4685.4,4685.3,0.953]
[1759785933715,0.6043354,4685.4,4685.3,0.953]
[1759785936622,0.3855354,4685.4,4685.3,0.953]
[1759785938321,0.5978354,4685.4,4685.3,0.735]
[1759785938523,0.5978354,4685.4,4685.3,0.953]
[1759785938716,1.1237354,4685.4,4685.3,0.3214]
[1759785938922,0.8034,4685.1,4685.0,0.1219]
[1759785939120,0.59633,4684.7,4684.6,0.4376]
[1759785939423,0.59633,4684.7,4684.6,0.984]
[1759785939619,0.59633,4684.7,4684.6,1.36804]
[1759785939924,0.2123,4685.1,4685.0,0.5576]
[1759785940119,0.5963,4685.1,4685.0,1.104]
[1759785940916,0.384,4685.1,4685.0,1.104]
[1759785943222,0.0015654,4685.4,4685.3,0.4376]
[1759785943525,0.3855454,4685.4,4685.3,0.984]
[1759785944120,0.0015654,4685.4,4685.3,0.984]
[1759785944717,0.0015654,4685.4,4685.3,0.766]
[1759785945028,0.0015654,4685.4,4685.3,0.984]
[1759785946022,0.0015654,4685.4,4685.3,0.766]
[1759785946322,0.0015654,4685.4,4685.3,0.984]
[1759785953734,0.38397,4685.5,4685.4,0.38398]
[1759785953934,0.38397,4685.5,4685.4,1.13488]
[1759785954836,0.38590523,4685.5,4685.4,1.13488]
[1759785955038,0.38590523,4685.5,4685.4,0.7509]
[1759785956440,0.80570523,4685.5,4685.4,0.9679]
[1759785956938,0.59160523,4685.5,4685.4,0.9679]
[1759785957335,0.38590523,4685.5,4685.4,0.9679]
[1759785957643,0.00193523,4685.5,4685.4,0.9679]
[1759785959642,0.2057,4686.6,4686.5,0.5478]
[1759785959840,0.4198,4686.6,4686.5,1.0899]
[1759785960039,0.7288,4686.6,4686.5,1.0899]
[1759785960239,1.11268,4686.6,4686.5,1.0899]
[1759785960438,1.1148257,4686.6,4686.5,1.09172148]
[1759785960938,0.0021457,4686.6,4686.5,1.09172148]
[1759785964233,3.2078,4687.2,4686.5,1.09172148]
[1759785964234,3.2078,4687.2,4687.1,0.4258]
[1759785964440,3.5916,4687.7,4687.6,0.7509]
[1759785964635,0.022,4687.9,4687.7,0.70889]
[1759785964841,0.022,4687.9,4687.8,0.7509]
[1759785965342,0.58937,4689.1,4689.0,0.122]
[1759785965539,0.20793312,4689.1,4689.0,0.7648]
[1759785965741,0.00223312,4689.1,4689.0,0.7648]
[1759785966038,0.20793312,4689.1,4689.0,1.0899]
[1759785966639,3.79712,4689.7,4689.6,0.4258]
[1759785966839,3.2078,4689.7,4689.6,0.9679]
[1759785967139,0.90677,4689.2,4689.1,0.5335]
[1759785967339,0.80347,4689.2,4689.1,0.7509]
[1759785967536,0.80347,4689.2,4689.1,0.9679]
[1759785967740,0.80537313,4689.2,4689.1,0.9679]
[1759785968948,0.80537313,4689.2,4689.1,0.7509]
[1759785969148,0.80537313,4689.2,4689.1,0.9679]
[1759785969746,0.38557313,4689.2,4689.1,0.9679]
[1759785969944,0.38557313,4689.2,4689.1,0.7509]
[1759785970248,0.38557313,4689.2,4689.1,0.9679]
[1759785970447,0.00190313,4689.2,4689.1,0.9679]
[1759785972249,3.2078,4690.2,4690.1,0.7509]
[1759785972453,3.2078,4690.2,4690.1,0.9679]
[1759785973045,0.58925,4690.6,4690.5,0.5478]
[1759785973241,0.20750355,4690.6,4690.5,1.09224484]
[1759785973448,0.00180355,4690.6,4690.5,1.09224484]
[1759785975847,0.20750355,4690.6,4690.5,1.09224484]
[1759785976043,0.00180355,4690.6,4690.5,1.09224484]
[1759785979453,0.00180355,4690.6,4690.5,0.87524484]
[1759785979655,0.20750355,4690.6,4690.5,0.87524484]
[1759785979853,0.20750355,4690.6,4690.5,1.09224484]
[1759785980156,0.00180355,4690.6,4690.5,1.09224484]
[1759785983151,0.00180355,4690.6,4689.0,0.3223]
[1759785983152,0.1238,4690.0,4689.0,0.3223]
[1759785983355,0.38361,4689.8,4689.7,0.4084]
[1759785983555,0.38361,4689.8,4689.7,0.6244]
[1759785983754,0.58751,4689.8,4689.7,0.6244]
[1759785983945,0.88831,4689.8,4689.7,0.6244]
[1759785984146,0.88831,4689.8,4689.7,0.62705928]
[1759785984958,1.09371,4689.8,4689.7,0.62705928]
[1759785985257,1.09371,4689.8,4689.7,0.95715928]
[1759785985758,1.09371,4689.8,4689.7,0.4010243]
[1759785985953,1.09371,4689.8,4689.7,0.216]
[1759785986158,1.09371,4689.8,4689.7,0.17835781]
[1759785986954,1.09371,4689.8,4689.7,0.0023872]
[1759785987150,1.09371,4689.8,4689.7,0.2183872]
[1759785987755,1.09371,4689.8,4689.7,0.0023872]
[1759785987956,1.09379,4688.9,4688.8,3.2078]
[1759785988258,1.09379,4688.9,4688.8,3.4238]
[1759785988461,1.09379,4688.9,4688.8,44.2238]
[1759785988655,0.88839,4688.9,4688.8,44.2238]
[1759785988962,0.68449,4688.9,4688.8,44.22656371]
[1759785989370,0.68449,4688.9,4688.8,3.42656371]
[1759785990564,1.09379,4688.9,4688.8,3.21056371]
[1759785990864,1.09379,4688.9,4688.8,3.42656371]
[1759785991057,1.09379,4688.9,4688.8,3.21056371]
[1759785991258,1.09379,4688.9,4688.8,0.21876371]
[1759785993262,1.09379,4688.9,4688.1,40.8]
[1759785993263,0.2039,4687.1,4686.9,33.27]
[1759785993565,0.1238,4687.0,4686.7,33.65387]
[1759785993861,0.3008,4686.9,4686.8,41.016]
[1759785994252,0.30269894,4686.9,4686.8,41.01854935]
[1759785995662,0.30269894,4686.9,4686.8,40.80254935]
[1759785996167,0.30269894,4686.9,4686.8,41.01854935]
[1759785996464,0.50659894,4686.9,4686.8,0.21854935]
[1759785996865,0.30269894,4686.9,4686.8,0.21854935]
[1759785997061,0.52339894,4686.9,4686.8,0.21854935]
[1759785998164,0.74149894,4686.9,4686.8,0.21854935]
[1759785998765,0.74149894,4686.9,4686.8,0.00254935]
[1759785998966,0.74149894,4686.9,4686.8,0.21854935]
[1759785999860,0.74149894,4686.9,4686.8,0.00254935]
[1759786000056,0.74149894,4686.9,4686.8,0.21854935]
[1759786000261,0.74149894,4686.9,4686.8,0.00254935]
[1759786000459,0.74149894,4686.9,4686.8,0.21854935]
[1759786005466,0.30269894,4686.9,4686.8,0.21854935]
[1759786006369,3.2078,4687.1,4687.0,0.6174]
[1759786006971,3.2078,4687.1,4687.0,41.4174]
[1759786007467,3.21025863,4687.1,4687.0,41.4174]
[1759786008468,3.53755863,4687.1,4687.0,41.4174]
[1759786011473,3.53755863,4687.1,4687.0,41.6334]
[1759786011670,0.38385,4687.0,4686.8,0.00254935]
[1759786011870,0.7499,4686.9,4686.8,0.00254935]
[1759786012076,0.7499,4686.9,4686.8,0.21854935]
[1759786013882,0.7499,4686.9,4686.8,0.42054935]
[1759786014381,0.7499,4686.9,4686.8,0.20454935]
[1759786014578,5.7499,4686.9,4686.8,0.00254935]
[1759786014887,0.7499,4685.6,4685.5,0.4171]
[1759786015081,0.7499,4685.6,4685.5,0.6331]
[1759786015681,0.7499,4685.6,4685.5,0.63503826]
[1759786017582,0.3273,4685.6,4685.5,0.83373826]
[1759786017981,0.3273,4685.9,4685.8,0.4171]
[1759786018189,0.3273,4685.9,4685.8,1.21574]
[1759786019189,0.7499,4686.2,4686.1,0.4171]
[1759786019390,0.7499,4686.2,4686.1,0.6331]
[1759786020291,0.7499,4686.2,4686.1,0.216]
[1759786020685,0.7499,4686.2,4686.1,0.418]
[1759786023792,0.7499,4686.2,4686.1,0.216]
[1759786024792,0.7499,4686.2,4686.1,0.202]
[1759786024998,0.7499,4686.2,4686.1,0.418]
[1759786025598,0.7499,4686.2,4686.1,0.4171]
[1759786025901,0.7499,4686.2,4686.1,0.6331]
[1759786028798,0.1292,4686.5,4686.1,0.8318]
[1759786029092,0.3273,4686.4,4686.3,0.6158]
[1759786029297,0.5332,4686.4,4686.3,0.8318]
[1759786029703,0.5332,4686.4,4686.3,0.6331]
[1759786030003,0.3273,4686.8,4686.7,0.6158]
[1759786030302,0.7499,4686.8,4686.7,0.418]
[1759786030505,0.7499,4686.8,4686.7,0.216]
[1759786030707,0.7499,4686.8,4686.7,41.016]
[1759786031898,1.13381,4686.2,4686.1,0.202]
[1759786032202,1.13384,4685.9,4685.8,0.202]
[1759786032499,1.13384,4685.9,4685.8,0.216]
[1759786033494,1.13384,4685.9,4685.8,0.418]
[1759786034106,0.7499,4685.9,4685.8,0.202]
[1759786034307,0.7499,4685.9,4685.8,0.418]
[1759786036508,0.7499,4685.9,4685.8,0.6331]
[1759786036706,3.7596,4686.5,4686.4,0.7397]
[1759786036908,3.7596,4686.5,4686.4,0.9557]
[1759786037211,3.2078,4686.5,4686.4,41.7557]
[1759786038303,0.2059,4686.6,4686.5,0.7513]
[1759786038606,0.2059,4686.6,4686.5,0.9673]
[1759786038801,0.2059,4686.6,4686.5,1.35118]
[1759786039007,0.2059,4686.6,4686.5,1.47588]
[1759786039906,0.5124,4686.8,4686.7,1.13517]
[1759786040101,0.5124,4686.8,4686.7,1.35117]
[1759786041609,0.2036,4686.8,4686.7,1.35117]
[1759786041805,3.6458,4687.0,4686.9,0.38385]
[1759786042109,3.8494,4687.0,4686.9,1.35115]
[1759786042716,0.5124,4687.0,4686.9,1.35115]
[1759786043210,0.7299,4687.0,4686.9,1.35115]
[1759786044311,0.7299,4687.0,4686.9,0.9673]
[1759786045005,0.5124,4687.0,4686.9,0.9673]
[1759786045314,0.00245863,4687.1,4687.0,0.5541]
[1759786045912,0.00245863,4687.1,4687.0,0.876]
[1759786048005,0.42355863,4687.1,4687.0,33.9496]
[1759786048612,0.71735863,4687.1,4687.0,0.8822]
[1759786049604,0.00245863,4687.1,4687.0,1.092]
[1759786049808,0.42355863,4687.1,4687.0,0.8822]
[1759786050004,0.71735863,4687.1,4687.0,0.5379]
[1759786050807,0.71735863,4687.1,4687.0,0.3219]
[1759786051508,0.71735863,4687.1,4687.0,0.5379]
[1759786051706,0.71735863,4687.1,4687.0,0.3219]
[1759786051905,0.7149,4686.7,4686.6,0.3219]
[1759786052108,0.7149,4686.7,4686.5,35.3273288]
[1759786052109,0.38389,4686.5,4686.2,4.7405388]
[1759786052306,1.0988,4686.3,4686.2,3.5297]
[1759786052509,1.0988,4686.3,4686.2,3.9653]
[1759786053316,1.0988,4686.3,4686.2,0.7575]
[1759786054309,1.0988,4686.3,4686.2,0.9673]
[1759786054310,0.805,4686.3,4686.2,0.9673]
[1759786054513,0.4211,4686.3,4686.2,0.9673]
[1759786055521,0.7149,4686.3,4686.2,0.9673]
[1759786055920,0.4211,4686.3,4686.2,0.9673]
[1759786056120,0.4211,4686.3,4686.2,0.7513]
[1759786056321,0.4211,4686.3,4686.2,0.9673]
[1759786056522,0.2036,4686.3,4686.2,0.9673]
[1759786057023,0.3839,4686.4,4686.2,1.02931]
[1759786057224,0.3839,4686.4,4686.3,0.7386]
[1759786057519,0.38389,4686.6,4686.5,0.1228]
[1759786057715,3.2078,4686.9,4686.8,0.79296]
[1759786057921,3.2078,4686.9,4686.8,1.33846]
[1759786058220,3.6348,4686.9,4686.8,0.7386]
[1759786058419,3.2078,4686.9,4686.8,0.9546]
[1759786059719,0.00245863,4687.1,4687.0,0.8614]
[1759786059720,0.72345863,4687.1,4687.0,0.8614]
[1759786059923,0.72345863,4687.1,4687.0,1.0774]
[1759786060225,0.42945863,4687.1,4687.0,1.0774]
[1759786061122,0.72345863,4687.1,4687.0,0.216]
[1759786061323,0.72345863,4687.1,4687.0,0.8614]
[1759786061324,0.42945863,4687.1,4687.0,0.8614]
[1759786061520,0.21015863,4687.1,4687.0,1.0774]
[1759786061924,0.42945863,4687.1,4687.0,0.8614]
[1759786062124,0.42945863,4687.1,4687.0,1.0774]
[1759786063132,0.42945863,4687.1,4687.0,0.8614]
[1759786063331,0.42945863,4687.1,4687.0,1.0774]
[1759786064127,0.42945863,4687.1,4687.0,0.8614]
[1759786064327,0.21015863,4687.1,4687.0,1.0774]
[1759786064724,0.59158,4686.6,4686.5,1.5327388]
[1759786064932,0.721,4686.4,4686.3,0.3295]
[1759786065129,0.427,4686.4,4686.3,0.9546]
[1759786066128,0.2077,4686.4,4686.3,0.9546]
[1759786066730,0.59158,4686.7,4686.6,0.4091]
[1759786066929,0.59158,4686.7,4686.6,0.9546]
[1759786068436,0.81088,4686.7,4686.6,0.9546]
[1759786069527,0.2077,4686.7,4686.6,0.9546]
[1759786069734,0.60329863,4687.1,4687.0,0.8544]
[1759786070036,1.11019863,4687.1,4687.0,1.0704]
[1759786070235,1.11019863,4687.1,4687.0,0.8544]
[1759786070438,1.11019863,4687.1,4687.0,0.8577]
[1759786070733,0.81599863,4687.1,4687.0,1.0704]
[1759786072840,0.60329863,4687.1,4687.0,1.0704]
[1759786074631,0.38629863,4687.1,4687.0,1.0704]
[1759786075141,0.00245863,4687.1,4687.0,1.0704]
[1759786079643,0.21945863,4687.1,4687.0,1.0704]
[1759786080034,0.00245863,4687.1,4687.0,1.0704]
[1759786081943,0.00245863,4687.1,4687.0,41.8704]
[1759786082141,0.00245863,4687.1,4687.0,43.4031388]
[1759786082444,0.00245863,4687.1,4687.0,76.6881388]
[1759786083241,3.59158,4687.9,4687.8,0.4209]
[1759786083446,3.59158,4687.9,4687.8,0.9488]
[1759786084350,3.59349972,4687.9,4687.8,0.9488]
[1759786084544,3.81049972,4687.9,4687.8,0.9488]
[1759786085150,3.20971972,4687.9,4687.8,0.9488]
[1759786088044,0.00191972,4687.9,4687.8,0.9488]
[1759786091347,3.2078,4688.5,4688.4,0.4209]
[1759786091544,0.9591,4689.6,4688.9,0.4209]
[1759786091545,3.59149,4689.0,4688.9,0.4209]
[1759786091748,3.59149,4689.0,4688.9,0.9488]
[1759786091945,0.38369,4689.0,4688.9,0.9488]
[1759786092343,0.38548036,4689.0,4688.9,0.950863]
[1759786092555,0.00179036,4689.0,4688.9,0.950863]
[1759786093159,0.21879036,4689.0,4688.9,0.950863]
[1759786094054,0.00179036,4689.0,4688.9,0.950863]
[1759786096261,0.60062,4689.8,4689.7,0.4209]
[1759786098560,0.21975168,4689.9,4689.8,0.7328]
[1759786099460,0.00275168,4689.9,4689.8,0.7328]
[1759786102465,0.72305168,4689.9,4689.8,0.5201]
[1759786102763,0.72305168,4689.9,4689.8,0.7361]
[1759786103463,0.72305168,4689.9,4689.8,0.5279]
[1759786104159,0.72305168,4689.9,4689.8,0.7494]
[1759786105758,0.72305168,4689.9,4689.8,0.5279]
[1759786106062,0.72305168,4689.9,4689.8,0.7494]
[1759786106262,0.72305168,4689.9,4689.8,0.5334]
[1759786106464,0.72305168,4689.9,4689.8,0.7494]
[1759786107667,0.72305168,4689.9,4689.8,0.5334]
[1759786107864,0.21225168,4689.9,4689.8,0.9668]
[1759786108167,0.00275168,4689.9,4689.8,0.9668]
[1759786108361,0.00275168,4689.9,4689.8,5.9668]
[1759786108565,3.2078,4690.6,4690.5,1.28216]
[1759786108770,3.2078,4690.6,4690.5,1.49816]